Workbook

Sheet 一般公共预算
A1: 附件1
A2: 沅江市2024年一般公共预算调整表
H4: 单位：万元
A5: 收 入 项 目 | B5: 2024年预算数 | C5: 调整变动数 | D5: 2024调整后预算数 | E5: 支 出 项 目 | F5: 2024年预算数 | G5: 调整变动数 | H5: 2024调整后预算数
A6: 1.税收收入 | B6: =SUM(B7:B21) -> 79855 | C6: =SUM(C7:C21) -> 756 | D6: =B6+C6 -> 80611 | E6: 一、一般公共服务 | F6: 56011 | G6: -3000 | H6: =F6+G6 -> 53011
A7: 增值税 | B7: 29087 | C7: -606 | D7: =B7+C7 -> 28481 | E7: 二、国防 | F7: 298 | H7: 298
A8: 营业税 | D8: =B8+C8 -> 0 | E8: 三、公共安全 | F8: 18236 | G8: -1000 | H8: 17236
A9: 企业所得税 | B9: 4032 | C9: -532 | D9: 3500 | E9: 四、教育 | F9: 83327 | G9: =12500+2000 -> 14500 | H9: 97827
A10: 个人所得税 | B10: 1064 | C10: 36 | D10: 1100 | E10: 五、科学技术 | F10: 6319 | G10: =13000+21300 -> 34300 | H10: 40619
A11: 资源税 | B11: 9900 | C11: -3400 | D11: 6500 | E11: 六、文化旅游体育与传媒 | F11: 3348 | H11: 3348
A12: 城市维护建设税 | B12: 3800 | C12: 770 | D12: 4570 | E12: 七、社会保障和就业 | F12: 95684 | H12: 95684
A13: 房产税 | B13: 4200 | C13: 2550 | D13: 6750 | E13: 八、卫生健康 | F13: 36114 | H13: 36114
A14: 印花税 | B14: 1000 | C14: -350 | D14: 650 | E14: 九、节能环保 | F14: 11672 | H14: 11672
A15: 城镇土地使用税 | B15: 1260 | C15: 1840 | D15: 3100 | E15: 十、城乡社区 | F15: 10751 | G15: =36654+20000-537-147-21300+1000-2000 -> 33670 | H15: 44421
A16: 土地增值税 | B16: 12000 | C16: -7600 | D16: 4400 | E16: 十一、农林水 | F16: 102046 | G16: 14000 | H16: 116046
A17: 车船税 | B17: 1500 | C17: 150 | D17: 1650 | E17: 十二、交通运输 | F17: 27174 | G17: -6000 | H17: 21174
A18: 耕地占用税 | B18: 900 | C18: 12950 | D18: 13850 | E18: 十三、资源勘探信息 | F18: 280 | G18: 147 | H18: 427
A19: 契税 | B19: 11000 | C19: -5000 | D19: 6000 | E19: 十四、商业服务业 | F19: 1821 | G19: 570 | H19: 2391
A20: 环境保护税 | B20: 112 | C20: -52 | D20: 60 | E20: 十五、金融支出 | G20: 131 | H20: 131
A21: 其他税收收入 | D21: 0 | E21: 十六、自然资源海洋气象 | F21: 3531 | G21: 2984 | H21: 6515
A22: 2.非税收入 | B22: =SUM(B23:B28) -> 81095 | C22: =SUM(C23:C28) -> -555 | D22: =SUM(D23:D28) -> 80540 | E22: 十七、住房保障 | F22: 14341 | H22: 14341
A23: 专项收入 | B23: 3980 | D23: =B23+C23 -> 3980 | E23: 十八、粮油物资储备 | F23: 4453 | H23: 4453
A24: 行政事业性收费收入 | B24: 5520 | D24: 5520 | E24: 十九、灾害防治及应急管理 | F24: 1603 | G24: 472 | H24: 2075
A25: 罚没收入 | B25: 7500 | C25: 13500 | D25: 21000 | E25: 二十、其他支出 | F25: 17 | G25: 65 | H25: 82
A26: 国有资本经营收入 | E26: 二十一、债务付息支出 | F26: 12060 | H26: 12060
A27: 国有资源（资产）有偿使用收入 | B27: 58000 | C27: -13500 | D27: 44500
A28: 其他收入 | B28: 6095 | C28: -555 | D28: 5540
A30: 公共预算收入 | B30: =B6+B22 -> 160950 | C30: =C6+C22 -> 201 | D30: =D6+D22 -> 161151 | E30: 公共预算支出 | F30: =SUM(F5:F28) -> 489086 | G30: =SUM(G5:G28) -> 90839 | H30: =SUM(H5:H28) -> 579925
A31: 返还性收入 | B31: 7869 | C31: 62 | D31: =B31+C31 -> 7931
A32: 一般性转移支付收入 | B32: 257453 | C32: =2072+5000+10000 -> 17072 | D32: =B32+C32 -> 274525
A33: 专项转移支付收入 | B33: 30000 | C33: 19938 | D33: =B33+C33 -> 49938 | E33: 上解支出 | F33: 7186 | G33: 3109 | H33: =F33+G33 -> 10295
A34: 调入预算稳定调节基金 | C34: 885 | D34: 885 | E34: 补助市县支出
A35: 上年结余收入 | C35: 78134 | D35: 78134 | E35: 地方政府债券还本支出 | G35: 49524 | H35: 49524
A36: 调入资金 | B36: 40000 | C36: 2000 | D36: 42000
A37: 转贷地方政府债券收入 | C37: =C38+C39 -> 56900 | D37: =D38+D39 -> 56900 | E37: 年终滚存结余 | G37: 31720 | H37: 31720
A38: 其中：1、新增债券 | C38: 7500 | D38: 7500 | E38: 减：结转下年支出
A39: 2、再融资债券 | C39: 49400 | D39: 49400
A40: 预算总收入 | B40: =B30+SUM(B31:B37) -> 496272 | C40: =C30+SUM(C31:C37) -> 175192 | D40: =D30+SUM(D31:D37) -> 671464 | E40: 预算总支出 | F40: =F30+SUM(F33:F36) -> 496272 | G40: =G30+SUM(G33:G37) -> 175192 | H40: =H30+SUM(H33:H37) -> 671464

Sheet 政府性基金预算
A1: 附件2
A2: 2024年政府性基金预算调整表
H3: 单位：万元
A4: 收 入 | E4: 支 出
A5: 项 目 | B5: 预算数 | C5: 调整变动数 | D5: 调整后预算数 | E5: 项 目 | F5: 预算数 | G5: 调整变动数 | H5: 调整后预算数
A6: 一、农网还贷资金收入 | E6: 一、文化体育与传媒支出
A7: 二、海南省高等级公路车辆通行附加费收入 | E7: 二、社会保障和就业支出 | F7: 4600 | G7: -4600
A8: 三、港口建设费收入 | E8: 三、节能环保支出
A9: 四、散装水泥专项资金收入 | E9: 四、城乡社区支出 | F9: 60775 | G9: -40000 | H9: =H10+H28+H30 -> 20775
A10: 五、新型墙体材料专项基金收入 | E10: 国有土地使用权出让收入安排的支出 | F10: 58195 | H10: =SUM(H11:H21) -> 18195
A11: 六、旅游发展基金收入 | E11: 征地和拆迁补偿支出 | F11: 500 | H11: =F11+G11 -> 500
A12: 七、新菜地开发建设基金收入 | E12: 土地开发支出
A13: 八、新增建设用地土地有偿使用费收入 | E13: 城市建设支出 | F13: 5000 | H13: 5000
A14: 九、南水北调工程建设基金收入 | E14: 农村基础设施建设支出 | F14: 4200 | H14: 4200
A15: 十、城市公用事业附加收入 | E15: 补助被征地农民支出
A16: 十一、国有土地收益基金收入 | E16: 土地出让业务支出 | F16: 1050 | H16: 1050
A17: 十二、农业土地开发资金收入 | E17: 廉租住房支出
A18: 十三、国有土地使用权出让收入 | B18: 60000 | C18: -40000 | D18: 20000 | E18: 支付破产或改制企业职工安置费
A19: 土地出让价款收入 | B19: 60000 | C19: -40000 | D19: 20000 | E19: 棚户区改造支出
A20: 补缴的土地价款 | E20: 公共租赁住房支出
A21: 划拨土地收入 | E21: 其他国有土地使用权出让收入安排的支出 | F21: 47445 | G21: -40000 | H21: =F21+G21 -> 7445
A22: 缴纳新增建设用地土地有偿使用费 | E22: 城市公用事业附加安排的支出 | F22: 0
A23: 其他土地出让收入 | E23: 城市公共设施
A24: 十四、大中型水库库区基金收入 | E24: 其他城市公用事业附加安排的支出
A25: 十五、彩票公益金收入 | B25: 0 | E25: 国有土地收益基金支出 | F25: 0
A26: 福利彩票公益金收入 | E26: 其他国有土地收益基金支出
A27: 体育彩票公益金收入 | E27: 农业土地开发资金支出
A28: 十六、城市基础设施配套费收入 | B28: 1380 | D28: 1380 | E28: 城市基础设施配套费安排的支出 | F28: 1380 | H28: 1380
A29: 十七、污水处理费收入 | B29: 1200 | D29: 1200 | E29: 城市公共设施 | F29: 1380 | H29: 1380
A30: 十八、国家重大水利工程建设基金收入 | B30: 0 | E30: 污水处理费安排的支出 | F30: 1200 | H30: 1200
A31: 南水北调工程建设资金 | E31: 五、农林水支出 | G31: 4600 | H31: =F31+G31 -> 4600
A32: 三峡工程后续工作资金 | E32: 六、交通运输支出 | F32: 55 | H32: 55
A33: 省级重大水利工程建设资金 | E33: 车辆通行费安排的支出 | F33: 55 | H33: 55
A34: 十九、车辆通行费 | B34: 55 | D34: 55 | E34: 其他车辆通行费安排的支出 | F34: 55 | H34: 55
A35: 二十、其他政府性基金收入 | B35: 59448 | C35: =SUM(C36:C40) -> -6000 | D35: =SUM(D36:D40) -> 53448 | E35: 七、资源勘探信息等支出 | F35: 0
A36: 旱改水指标交易 | B36: 10000 | C36: -6000 | D36: =B36+C36 -> 4000 | E36: 散装水泥专项资金支出 | F36: 0
A37: 其他砂石收入 | B37: 20000 | D37: =B37+C37 -> 20000 | E37: 其他散装水泥专项资金支出
A38: 砂石矿开采权出让收入 | B38: 1000 | D38: =B38+C38 -> 1000 | E38: 八、地方政府专项债务付息支出 | F38: 8995 | H38: =F38+G38 -> 8995
A39: 专项债券资金收益 | B39: 8448 | D39: =B39+C39 -> 8448 | E39: 九、其他支出 | F39: 12258 | G39: =SUM(G40:G43) -> 45735 | H39: =SUM(H40:H43) -> 57993
A40: 其他缴入政府性基金的收入 | B40: 20000 | D40: =B40+C40 -> 20000 | E40: 其他政府性基金支出 | F40: 12258 | G40: =2368+2000 -> 4368 | H40: =F40+G40 -> 16626
E41: 彩票发行机构业务费安排的支出 | G41: 31 | H41: 31
E42: 彩票公益金安排的支出 | G42: 1336 | H42: 1336
E43: 专项债券安排的支出 | G43: 40000 | H43: 40000
A45: 收入合计 | B45: 122083 | C45: =C35+C34+C29+C28+C18 -> -46000 | D45: =D35+D34+D29+D28+D18 -> 76083 | E45: 支出合计 | F45: =F39+F38+F35+F32+F31+F9+F8+F7+F6 -> 86683 | G45: =G39+G38+G35+G32+G31+G9+G8+G7+G6 -> 5735 | H45: =H39+H38+H35+H32+H31+H9+H8+H7+H6 -> 92418
A46: 转移性收入 | B46: 4600 | C46: =C47+C49+C50+C52+C51 -> 124620 | D46: =D47+D49+D50+D52+D51 -> 129220 | E46: 转移性支出 | F46: 40000 | G46: =G47+G49+G50+G51+G52 -> 72885 | H46: =H47+H49+H50+H51+H52 -> 112885
A47: 政府性基金转移收入 | B47: 4600 | C47: 14310 | D47: 18910 | E47: 政府性基金转移支付 | F47: 0 | G47: 0 | H47: 0
A48: 政府性基金补助收入 | B48: 4600 | C48: 14310 | D48: 18910 | E48: 政府性基金上解支出
A49: 上年结余收入 | C49: 7810 | D49: 7810 | E49: 调出资金 | F49: 40000 | G49: 2000 | H49: =F49+G49 -> 42000
A50: 地方政府专项债务转贷收入 | C50: 95500 | D50: 95500 | E50: 地方政府专项债务转贷支出
A51: 地方政府专项再融资债券 | C51: 7000 | D51: 7000 | E51: 地方政府专项债务还本支出 | G51: 13150 | H51: =F51+G51 -> 13150
A52: 调入资金 | E52: 年终结余 | G52: 57735 | H52: 57735
A53: 收入总计 | B53: 126683 | C53: =C45+C46 -> 78620 | D53: =D45+D46 -> 205303 | E53: 支出总计 | F53: 126683 | G53: =G45+G46 -> 78620 | H53: =H45+H46 -> 205303

Sheet 社保基金预算
A1: 附件3
A2: 2024年社会保险基金预算调整表
N3: 单位：万元
A4: 项 目 | B4: 汇总 | E4: 机关事业养老保险基金 | H4: 城乡居民养老保险基金 | K4: 失业保险基金 | L4: 职工基本医疗(生育）保险基金 | M4: 城乡居民基本 医疗保险基金 | N4: 工伤保险基金
B5: 预算数 | C5: 调整 变动数 | D5: 调整后 预算数 | E5: 预算数 | F5: 调整 变动数 | G5: 调整后 预算数 | H5: 预算数 | I5: 调整 变动数 | J5: 调整后 预算数
A6: 一、上年结余 | B6: =E6+H6 -> 97988 | C6: =F6+I6 -> 0 | D6: =G6+J6 -> 97988 | E6: 657 | F6: =G6-E6 -> 0 | G6: 657 | H6: 97331 | J6: 97331
A7: 二、本年收入 | B7: 99170 | C7: 9831 | D7: 109001 | E7: =E8+E9+E10+E11+E12 -> 68564 | F7: 1304 | G7: 69868 | H7: 30606 | I7: 8527 | J7: 39133
A8: 其中： 1、保险费收入 | B8: 37430 | C8: 7901 | D8: 45331 | E8: 25098 | F8: -816 | G8: 24282 | H8: 12332 | I8: =J8-H8 -> 8717 | J8: 21049
A9: 2、利息收入 | B9: 551 | C9: -147 | D9: 404 | E9: 80 | F9: -52 | G9: 28 | H9: 471 | I9: -95 | J9: 376
A10: 3、财政补贴收入 | B10: 60625 | C10: 2437 | D10: 63062 | E10: 42886 | F10: 2550 | G10: 45436 | H10: 17739 | I10: -113 | J10: 17626
A11: 4、其他收入 | B11: 24 | C11: 37 | D11: 61 | F11: 18 | G11: 18 | H11: 24 | I11: 19 | J11: 43
A12: 5、转移收入 | B12: 540 | C12: -397 | D12: 143 | E12: 500 | F12: -396 | G12: 104 | H12: 40 | I12: -1 | J12: 39
A13: 6、上级补助收入 | B13: 0 | C13: 0 | D13: 0 | F13: 0
A14: 7、下级上解收入 | B14: 0 | C14: 0 | D14: 0 | F14: 0
A15: 三、本年支出 | B15: 87278 | C15: 6000 | D15: 93278 | E15: =E16+E17+E18 -> 68564 | F15: 1304 | G15: 69868 | H15: 18714 | I15: 4696 | J15: 23410
A16: 其中： 1、社会保险待遇支出 | B16: 86560 | C16: 6184 | D16: 92744 | E16: 68400 | F16: =G16-E16 -> 1455 | G16: 69855 | H16: 18160 | I16: =J16-H16 -> 4729 | J16: 22889
A17: 2、其他支出 | B17: 36 | C17: -26 | D17: 10 | F17: 7 | G17: 7 | H17: 36 | I17: -33 | J17: 3
A18: 3、转移支出 | B18: 682 | C18: -158 | D18: 524 | E18: 164 | F18: -158 | G18: 6 | H18: 518 | I18: 0 | J18: 518
A19: 4、补助下级支出 | B19: 0 | C19: 0 | D19: 0 | F19: 0
A20: 5、上解上级支出 | B20: 0 | C20: 0 | D20: 0 | F20: 0
A21: 四、本年收支结余 | B21: 11892 | C21: 3831 | D21: 15723 | E21: =E7-E15 -> 0 | F21: 0 | G21: 0 | H21: 11892 | I21: =J21-H21 -> 3831 | J21: =J7-J15 -> 15723
A22: 五、年末滚存结余 | B22: 109880 | C22: 3831 | D22: 113711 | E22: =E6+E7-E15 -> 657 | F22: 0 | G22: 657 | H22: 109223 | I22: =J22-H22 -> 3831 | J22: =J6+J7-J15 -> 113054
A24: 备注：征缴收入税务未暂提供，社保中心已按照2024年3季度预算执行报表进行调整，待税务提供后再作调整。
